{"text_format":"1","workbook":"xlsx","n_sheets":3,"sheets":["категории","наименование","Лист3"],"not_rendered":{"charts":0,"images":0,"macros":1,"external_links":0,"defined_names":0,"comments":0,"pivot_tables":0},"unopened":[],"bounds":{"document_bytes":16777216,"sheet_cells":100000,"rows_first":2000,"rows_last":500,"rows_between":2000,"halvings":0,"cell_chars":16384,"cell_head_chars":4096},"cells_cut":0,"cells_raw":0,"read":"whole","date_system":"1900"}

{"sheet":"категории","index":0,"n_rows":11,"n_cols":1,"rows_kept":11,"cut":false,"hidden":false,"merged":[]}
["Ассортиментная группа"]
["Чай ассорти листовой"]
["Чай зеленый листовой"]
["Чай травяной, фруктовый листовой"]
["Чай черный листовой"]
["Чай ассорти пакетированный"]
["Чай зеленый пакетированный"]
["Чай травяной, фруктовый пакетированный"]
["Чай черный пакетированный"]
["Чай для похудения"]
["Соусы, кетчупы, сиропы, томатная паста"]

{"sheet":"наименование","index":1,"n_rows":20,"n_cols":15,"rows_kept":20,"cut":false,"hidden":false,"merged":[]}
["Код ТН","Товарное направление","Код ТК","Товарная категория","Код ТГ","Товарная группа","Код АГ","переименованная Ассортиментная группа","Наименование товара","доп.","Результат",null,null,null,"Ассортиментная группа"]
["05","Демонстрационное оборудование","0504","Доски для информации","050404","Меловые магнитные доски","05040401","Меловые магнитные доски","Доп.заказ Чай  Дамманн  Сeylon O.P. Черный 24пак",{"$f":"SUBSTITUTE(I2,\"Доп.заказ \",)","v":"Чай  Дамманн  Сeylon O.P. Черный 24пак"},{"$f":"INDEX($O$2:$O$11,FindBestMatchTxt(J2,$O$2:$O$11,10%))","v":"Чай черный пакетированный"},null,null,null,"Чай ассорти листовой"]
["05","Демонстрационное оборудование","0504","Доски для информации","050405","Металлические магнитные доски","05040501","Металлические магнитные доски","Доп.заказ Чай  Дамманн  Сhine Gunpowder/зеленый 24пак",{"$f":"SUBSTITUTE(I3,\"Доп.заказ \",)","v":"Чай  Дамманн  Сhine Gunpowder/зеленый 24пак"},{"$f":"INDEX($O$2:$O$11,FindBestMatchTxt(J3,$O$2:$O$11,10%))","v":"Чай зеленый пакетированный"},null,null,null,"Чай зеленый листовой"]
["05","Демонстрационное оборудование","0507","Рекламные стойки, подставки, таблички","050706","Государственная символика","05070601","Гербы","Доп.заказ Чай Greenfield Манго Делайт (1.8г х 25п) неферм.с доб.","Чай Greenfield Манго Делайт (1.8г х 25п) неферм.с доб.","Чай травяной, фруктовый листовой",null,null,null,"Чай травяной, фруктовый листовой"]
["05","Демонстрационное оборудование","0507","Рекламные стойки, подставки, таблички","050702","Информационные таблички","05070201","Информационные таблички","Доп.заказ Сироп Кокос АССENTO 1 л","Сироп Кокос АССENTO 1 л","Соусы, кетчупы, сиропы, томатная паста",null,null,null,"Чай черный листовой"]
["05","Демонстрационное оборудование","0511","Флипчарты",null,null,"051101","Блокноты для флипчартов","Доп.заказ Сироп Сахарный тростник АССENTO 1 л","Сироп Сахарный тростник АССENTO 1 л","Соусы, кетчупы, сиропы, томатная паста",null,null,null,"Чай ассорти пакетированный"]
["05","Демонстрационное оборудование","0511","Флипчарты",null,null,"051102","Флипчарты","Доп.заказ Сироп Мята АССENTO 1 л","Сироп Мята АССENTO 1 л","Соусы, кетчупы, сиропы, томатная паста",null,null,null,"Чай зеленый пакетированный"]
["05","Демонстрационное оборудование","0513","Киоски информационные","051301","Киоски информационные","05130101","Киоски информационные","Доп.заказ Сироп Фундук АССENTO 1 л","Сироп Фундук АССENTO 1 л","Соусы, кетчупы, сиропы, томатная паста",null,null,null,"Чай травяной, фруктовый пакетированный"]
["05","Демонстрационное оборудование","0513","Киоски информационные","051303","Программное обеспечение для киосков","05130301","Программное обеспечение для киосков","Доп.заказ Сироп Манго АССENTO 1 л","Сироп Манго АССENTO 1 л","Соусы, кетчупы, сиропы, томатная паста",null,null,null,"Чай черный пакетированный"]
["05","Демонстрационное оборудование","0513","Киоски информационные","051304","Индивидуальные сертификаты для киосков","05130401","Индивидуальные сертификаты для киосков","Доп.заказ Сироп Малина АССENTO 1 л","Сироп Малина АССENTO 1 л","Соусы, кетчупы, сиропы, томатная паста",null,null,null,"Чай для похудения"]
["05","Демонстрационное оборудование","0512","Информационные стенды",null,null,"051201","Информационные стенды","Доп.заказ Сироп Яблоко зеленое АССENTO 1 л","Сироп Яблоко зеленое АССENTO 1 л","Чай зеленый пакетированный",null,null,null,"Соусы, кетчупы, сиропы, томатная паста"]
["06","Компьютерная техника","0602","Мобильные компьютеры",null,null,"060201","Ноутбуки","Доп.заказ Сироп Банан АССENTO 1 л","Сироп Банан АССENTO 1 л","Соусы, кетчупы, сиропы, томатная паста"]
["06","Компьютерная техника","0602","Мобильные компьютеры",null,null,"060203","Интернет-планшеты","Доп.заказ Сироп Арбуз АССENTO 1 л","Сироп Арбуз АССENTO 1 л","Соусы, кетчупы, сиропы, томатная паста"]
["06","Компьютерная техника","0602","Мобильные компьютеры",null,null,"060204","Док-станции","Доп.заказ Сироп Вишня АССENTO 1 л","Сироп Вишня АССENTO 1 л","Соусы, кетчупы, сиропы, томатная паста"]
["06","Компьютерная техника","0606","Сетевое оборудование","060601","Активное сетевое оборудование","06060103","Принт-серверы","Доп.заказ Сироп Клубника АССENTO 1 л","Сироп Клубника АССENTO 1 л","Соусы, кетчупы, сиропы, томатная паста"]
["06","Компьютерная техника","0606","Сетевое оборудование","060601","Активное сетевое оборудование","06060106","Антенны","Доп.заказ Сироп Персик АССENTO 1 л","Сироп Персик АССENTO 1 л","Соусы, кетчупы, сиропы, томатная паста"]
["06","Компьютерная техника","0606","Сетевое оборудование","060601","Активное сетевое оборудование","06060108","Межсетевые экраны","Доп.заказ Сироп Черная смородина АССENTO 1 л","Сироп Черная смородина АССENTO 1 л","Соусы, кетчупы, сиропы, томатная паста"]
["06","Компьютерная техника","0606","Сетевое оборудование","060601","Активное сетевое оборудование","06060109","Коммутаторы","Доп.заказ Сироп Дыня АССENTO 1 л","Сироп Дыня АССENTO 1 л","Соусы, кетчупы, сиропы, томатная паста"]
["06","Компьютерная техника","0606","Сетевое оборудование","060601","Активное сетевое оборудование","06060110","Маршрутизаторы","Доп.заказ Сироп Ваниль АССENTO 1 л","Сироп Ваниль АССENTO 1 л","Чай ассорти пакетированный"]
["06","Компьютерная техника","0606","Сетевое оборудование","060601","Активное сетевое оборудование","06060111","xDSL оборудование","Доп.заказ Сироп Ежевика АССENTO 1 л","Сироп Ежевика АССENTO 1 л","Соусы, кетчупы, сиропы, томатная паста"]

{"sheet":"Лист3","index":2,"n_rows":0,"n_cols":0,"rows_kept":0,"cut":false,"hidden":false,"merged":[]}